bitfinex/quotes_BTCUSD_20240827
["timestamp","ask_amount","ask_price","bid_price","bid_amount"]
[1724770786228,2.0776486,61962.0,61961.0,0.00926]
[1724770788294,2.10293318,61962.0,61961.0,0.00926]
[1724770790994,1.03580973,61962.0,61961.0,0.00926]
[1724770791196,1.22187985,61962.0,61961.0,0.00926]
[1724770791608,1.52050384,61962.0,61961.0,0.00926]
[1724770791963,1.19772584,61962.0,61961.0,0.21986]
[1724770792370,1.10822384,61962.0,61961.0,0.21986]
[1724770792580,0.71355884,61962.0,61961.0,0.21986]
[1724770792781,0.80253373,61962.0,61961.0,0.21986]
[1724770793276,0.87494784,61962.0,61961.0,0.21986]
[1724770793685,1.65473395,61962.0,61961.0,0.21986]
[1724770793933,1.67888796,61962.0,61961.0,0.00926]
[1724770794146,2.23466329,61962.0,61961.0,0.00926]
[1724770794643,2.70433398,61962.0,61961.0,0.00926]
[1724770794863,2.91633398,61962.0,61961.0,0.00926]
[1724770795096,2.74615671,61962.0,61961.0,0.00926]
[1724770796203,2.88045462,61962.0,61961.0,0.00926]
[1724770796627,1.18012515,61962.0,61961.0,0.00926]
[1724770796947,1.50290315,61962.0,61961.0,0.00926]
[1724770797147,1.9856466,61962.0,61961.0,0.00926]
[1724770798116,2.1850466,61962.0,61961.0,0.00926]
[1724770800377,1.15549587,61962.0,61961.0,0.00855]
[1724770800620,1.1704906,61962.0,61961.0,0.00855]
[1724770800816,2.34751205,61962.0,61961.0,0.00855]
[1724770801222,2.34951205,61962.0,61961.0,0.00855]
[1724770801423,2.34751205,61962.0,61961.0,0.00855]
[1724770801638,2.34851205,61962.0,61961.0,0.00855]
[1724770801842,2.57331196,61962.0,61961.0,0.00855]
[1724770802059,2.57131196,61962.0,61961.0,0.00855]
[1724770802268,0.52635815,61962.0,61961.0,0.00855]
[1724770802466,0.50109,61962.0,61961.0,0.21525]
[1724770803292,0.49309,61962.0,61961.0,0.37421545]
[1724770803740,0.48609,61962.0,61961.0,0.37421545]
[1724770803975,0.48809,61962.0,61961.0,0.37421545]
[1724770804175,0.48809,61962.0,61961.0,0.5146862]
[1724770804387,0.48609,61962.0,61961.0,0.5146862]
[1724770804647,0.48809,61962.0,61961.0,0.5146862]
[1724770805050,0.48809,61962.0,61961.0,0.4916862]
[1724770805252,0.48809,61962.0,61961.0,0.47421545]
[1724770805658,0.48809,61962.0,61961.0,0.48868154]
[1724770806579,0.48409,61962.0,61961.0,0.48868154]
[1724770806709,0.48509,61962.0,61961.0,0.49407625]
[1724770806913,0.48609,61962.0,61961.0,0.3341108]
[1724770807140,0.48409,61962.0,61961.0,0.3281108]
[1724770807512,0.48609,61962.0,61961.0,0.3341108]
[1724770808124,0.48509,61962.0,61961.0,0.3301108]
[1724770808328,0.48409,61962.0,61961.0,0.3281108]
[1724770808523,0.48509,61962.0,61961.0,0.3331108]
[1724770809789,0.647479,61962.0,61961.0,0.22064471]
[1724770809922,0.48609,61962.0,61961.0,0.22064471]
[1724770812229,0.4857874,61962.0,61961.0,0.22064471]
[1724770813646,0.4837874,61962.0,61961.0,0.21364471]
[1724770814025,0.4857874,61962.0,61961.0,0.21964471]
[1724770815244,0.6471764,61962.0,61961.0,0.21964471]
[1724770815597,0.9699544,61962.0,61961.0,0.21964471]
[1724770815788,0.9699544,61962.0,61961.0,0.01294471]
[1724770815789,0.4857874,61962.0,61961.0,0.01294471]
[1724770815975,1.2927324,61962.0,61961.0,0.01294471]
[1724770816394,0.9699544,61962.0,61961.0,0.01294471]
[1724770816794,0.6471764,61962.0,61961.0,0.01294471]
[1724770817037,0.9699544,61962.0,61961.0,0.01294471]
[1724770817236,1.40634868,61962.0,61961.0,0.01294471]
[1724770818408,1.3180144,61962.0,61961.0,0.01294471]
[1724770818727,1.3130144,61962.0,61961.0,0.01294471]
[1724770819291,0.5060694,61962.0,61961.0,0.01294471]
[1724770819492,0.5060694,61962.0,61961.0,0.20554471]
[1724770820336,0.5060694,61962.0,61961.0,0.01294471]
[1724770820966,0.6674584,61962.0,61961.0,0.01294471]
[1724770821103,0.5060694,61962.0,61961.0,0.01294471]
[1724770821936,0.5060694,61962.0,61961.0,0.22514471]
[1724770822854,0.48169161,61962.0,61961.0,0.22514471]
[1724770823777,0.48169161,61962.0,61961.0,0.23938459]
[1724770825749,0.48169161,61962.0,61961.0,0.39935004]
[1724770825967,0.48169161,61962.0,61961.0,0.49935004]
[1724770827387,0.48169161,61962.0,61961.0,0.33938459]
[1724770829363,1.5091146,61962.0,61961.0,0.01294471]
[1724770829566,1.8318926,61962.0,61961.0,0.01294471]
[1724770830184,2.51323605,61962.0,61961.0,0.01294471]
[1724770830393,2.53750556,61962.0,61961.0,0.01094471]
[1724770830796,2.65904139,61962.0,61961.0,0.00694471]
[1724770831009,2.33426339,61962.0,61961.0,0.00694471]
[1724770831463,2.34626339,61962.0,61961.0,0.00694471]
[1724770831847,2.29789114,61962.0,61961.0,0.00694471]
[1724770832168,2.22572756,61962.0,61961.0,0.00694471]
[1724770832373,2.29989605,61962.0,61961.0,0.00694471]
[1724770832702,2.28589605,61962.0,61961.0,0.00694471]
[1724770832913,2.30889605,61962.0,61961.0,0.00694471]
[1724770833542,2.32089605,61962.0,61961.0,0.00694471]
[1724770833813,2.28589605,61962.0,61961.0,0.00694471]
[1724770834125,2.23672756,61962.0,61961.0,0.00694471]
[1724770834532,2.29695505,61962.0,61961.0,0.00694471]
[1724770834773,2.62173305,61962.0,61961.0,0.00694471]
[1724770834987,2.54950556,61962.0,61961.0,0.00694471]
[1724770835411,2.53850556,61962.0,61961.0,0.00694471]
[1724770835612,2.53850556,61962.0,61956.0,0.00822]
[1724770835613,1.822418,61957.0,61956.0,0.00822]
[1724770835815,2.71024027,61957.0,61956.0,0.00822]
[1724770837129,2.71624027,61957.0,61956.0,0.00822]
[1724770837329,2.72224027,61957.0,61956.0,0.00822]
[1724770837754,2.73624027,61957.0,61956.0,0.00822]
[1724770837987,2.89620572,61957.0,61956.0,0.00822]
[1724770838368,2.91949444,61957.0,61956.0,0.00822]
[1724770838508,2.21292508,61957.0,61956.0,0.00822]
[1724770839533,2.19292508,61957.0,61956.0,0.00822]
[1724770839963,2.20092508,61957.0,61956.0,0.00822]
[1724770840174,2.42472499,61957.0,61956.0,0.00822]
[1724770840351,2.58469044,61957.0,61956.0,0.00822]
[1724770840568,2.59069044,61957.0,61956.0,0.00822]
[1724770840821,2.57669044,61957.0,61956.0,0.00822]
[1724770841017,2.58169044,61957.0,61956.0,0.00822]
[1724770841392,2.57569044,61957.0,61956.0,0.00822]
[1724770841593,2.58069044,61957.0,61956.0,0.00822]
[1724770841860,2.90549444,61957.0,61956.0,0.00822]
[1724770842029,2.91549444,61957.0,61956.0,0.00822]
[1724770842999,2.90549444,61957.0,61956.0,0.00822]
[1724770843209,2.91649444,61957.0,61956.0,0.00822]
[1724770843604,2.90549444,61957.0,61956.0,0.00822]
[1724770843801,2.91949444,61957.0,61956.0,0.00822]
[1724770844024,2.90949444,61957.0,61956.0,0.00822]
[1724770844476,2.91949444,61957.0,61956.0,0.00822]
[1724770844651,3.01949444,61957.0,61956.0,0.00822]
[1724770844885,3.00949444,61957.0,61956.0,0.00822]
[1724770845191,2.99820572,61957.0,61956.0,0.00822]
[1724770845302,0.163415,61952.0,61951.0,0.0004]
[1724770845502,2.49385736,61952.0,61951.0,0.0004]
[1724770845721,0.808087,61951.0,61950.0,0.0954]
[1724770845922,2.07200927,61951.0,61950.0,0.0954]
[1724770846169,2.39484427,61951.0,61950.0,0.0954]
[1724770846366,2.87764472,61951.0,61950.0,0.0954]
[1724770846572,2.55280972,61951.0,61950.0,0.0954]
[1724770847141,2.38157476,61951.0,61950.0,0.0954]
[1724770847572,2.15777485,61951.0,61950.0,0.0954]
[1724770847774,1.62413985,61951.0,61950.0,0.0954]
[1724770848377,1.95997485,61951.0,61950.0,0.0954]
[1724770848890,1.94697485,61951.0,61950.0,0.0954]
[1724770849089,2.3124403,61951.0,61950.0,0.0954]
[1724770849343,2.34656594,61951.0,61950.0,0.0954]
[1724770849513,2.2984403,61951.0,61950.0,0.0954]
[1724770849713,2.3054403,61951.0,61950.0,0.0954]
[1724770849952,2.2984403,61951.0,61950.0,0.0954]
[1724770850431,2.3234403,61951.0,61950.0,0.0954]
[1724770850623,2.35952582,61951.0,61950.0,0.0954]
[1724770850809,2.34652582,61951.0,61950.0,0.0954]
[1724770851027,2.35852582,61951.0,61950.0,0.0954]
[1724770851232,2.3104403,61951.0,61950.0,0.0954]
[1724770852953,1.9986053,61951.0,61950.0,0.0954]
[1724770853576,2.3214403,61951.0,61950.0,0.0954]
[1724770853976,1.9986053,61951.0,61950.0,0.0954]
[1724770855136,2.3214403,61951.0,61950.0,0.0954]
[1724770855264,1.9986053,61951.0,61950.0,0.0954]
[1724770855871,1.7931053,61951.0,61950.0,0.0954]
[1724770856500,2.1159403,61951.0,61950.0,0.0954]
[1724770856828,1.7931053,61951.0,61950.0,0.0954]
[1724770856976,2.3156403,61951.0,61950.0,0.0954]
[1724770857954,2.41413906,61951.0,61950.0,0.0954]
[1724770858253,2.34291608,61951.0,61950.0,0.096222]
[1724770858459,2.34382029,61951.0,61950.0,0.096222]
[1724770858672,2.31854451,61951.0,61950.0,0.096222]
[1724770858861,2.81365496,61951.0,61950.0,0.096222]
[1724770859114,2.76665465,61951.0,61950.0,0.096222]
[1724770859313,2.88702926,61951.0,61950.0,0.096222]
[1724770859614,2.5642511,61951.0,61950.0,0.096222]
[1724770860014,2.8870861,61951.0,61950.0,0.096222]
[1724770860422,2.44281965,61951.0,61950.0,0.096222]
[1724770860598,2.53818573,61951.0,61950.0,0.096222]
[1724770860801,2.56427066,61951.0,61950.0,0.096222]
[1724770861060,2.76665465,61951.0,61950.0,0.096222]
[1724770861183,0.644361,61950.0,61949.0,0.00822]
[1724770861388,2.14089003,61950.0,61949.0,0.00822]
[1724770861697,2.66613633,61950.0,61949.0,0.00822]
[1724770861850,2.64113633,61950.0,61949.0,0.00822]
[1724770862024,2.71339643,61950.0,61949.0,0.00822]
[1724770862234,2.61586119,61950.0,61949.0,0.00822]
[1724770862453,2.38401497,61950.0,61949.0,0.00822]
[1724770862867,2.43583656,61950.0,61949.0,0.00822]
[1724770863770,2.49801497,61950.0,61949.0,0.00822]
[1724770863976,2.51201497,61950.0,61949.0,0.00822]
[1724770864175,2.44983656,61950.0,61949.0,0.00822]
[1724770864381,2.43583656,61950.0,61949.0,0.00822]
[1724770864586,2.46083656,61950.0,61949.0,0.00822]
[1724770865243,2.70031497,61950.0,61949.0,0.00822]
[1724770865459,0.52906277,61950.0,61949.0,0.00822]
[1724770865653,0.52906277,61950.0,61949.0,0.20702]
[1724770865654,0.6652074,61950.0,61949.0,0.20702]
[1724770865855,0.5037874,61950.0,61949.0,0.20702]
[1724770866176,0.5037874,61950.0,61949.0,0.00822]
[1724770866177,0.8302074,61950.0,61949.0,0.00822]
[1724770866415,1.05779956,61950.0,61949.0,0.00822]
[1724770866556,1.36864056,61950.0,61949.0,0.00822]
[1724770866766,1.37564056,61950.0,61949.0,0.00822]
[1724770866991,1.37664056,61950.0,61949.0,0.00822]
[1724770867409,1.36864056,61950.0,61949.0,0.00822]
[1724770867605,2.63012435,61950.0,61949.0,0.00822]
[1724770867806,2.55786425,61950.0,61949.0,0.00822]
[1724770868008,2.65422108,61950.0,61949.0,0.00822]
[1724770868161,2.55786425,61950.0,61949.0,0.00822]
[1724770868368,1.97107245,61949.0,61948.0,0.00822]
[1724770868571,3.08094754,61949.0,61948.0,0.00822]
[1724770869174,2.73510154,61949.0,61948.0,0.00822]
[1724770869687,2.85572409,61949.0,61948.0,0.00822]
[1724770869901,2.73510154,61949.0,61948.0,0.00822]
[1724770870322,2.85472409,61949.0,61948.0,0.00822]
[1724770870726,2.85572409,61949.0,61948.0,0.00822]
[1724770870958,3.19257009,61949.0,61948.0,0.00822]
[1724770871165,3.07194754,61949.0,61948.0,0.00822]
[1724770871370,3.08594754,61949.0,61948.0,0.00822]
[1724770871574,3.23048875,61949.0,61948.0,0.00822]
[1724770871774,3.13424118,61949.0,61948.0,0.00822]
[1724770872183,1.777735,61946.0,61941.0,0.00822]
[1724770872393,3.27692945,61946.0,61941.0,0.00822]
[1724770872843,3.42164423,61946.0,61941.0,0.00822]
[1724770873042,3.27692945,61946.0,61941.0,0.00822]
[1724770873843,3.27692945,61946.0,61938.0,0.00822]
[1724770873844,0.002,61941.0,61938.0,0.00822]
[1724770874042,0.002,61941.0,61919.0,0.2017]
[1724770874043,0.485386,61934.0,61919.0,0.2017]
[1724770874195,1.79426309,61934.0,61929.0,0.2234439]
[1724770875021,1.95016309,61934.0,61929.0,0.0217439]
[1724770875230,2.31100852,61934.0,61929.0,0.0217439]
[1724770875543,2.10190852,61934.0,61929.0,0.0217439]
[1724770875757,2.41424753,61934.0,61929.0,0.0217439]
[1724770875962,2.73917153,61934.0,61929.0,0.0217439]
[1724770876174,2.41424753,61934.0,61929.0,0.0217439]
[1724770876380,2.41624753,61934.0,61929.0,0.0217439]
[1724770876596,2.73917153,61934.0,61929.0,0.0217439]
[1724770876827,2.73917153,61934.0,61917.0,0.041]
[1724770876828,1.481024,61918.0,61917.0,0.041]
[1724770877038,2.74221335,61918.0,61917.0,0.041]
[1724770877246,0.512016,61913.0,61902.0,0.1]
[1724770877447,1.6368694,61913.0,61902.0,0.1]
[1724770877643,2.2829354,61913.0,61902.0,0.1]
[1724770878219,1.2863694,61913.0,61911.0,0.196]
[1724770878399,1.76936785,61913.0,61911.0,0.196]
[1724770878619,1.76936785,61913.0,61911.0,0.0004]
[1724770878856,1.78336785,61913.0,61911.0,0.0004]
[1724770879051,1.3003694,61913.0,61911.0,0.0004]
[1724770880659,2.13170354,61913.0,61911.0,0.0004]
[1724770880869,2.18217054,61913.0,61911.0,0.0004]
[1724770881097,2.35113599,61913.0,61911.0,0.0004]
[1724770881366,2.33913599,61913.0,61911.0,0.0004]
[1724770881597,2.13163599,61913.0,61911.0,0.0004]
[1724770881826,2.13963599,61913.0,61911.0,0.0004]
[1724770882059,2.33043599,61913.0,61911.0,0.0004]
[1724770882290,2.8912689,61913.0,61911.0,0.0004]
[1724770882522,2.8912689,61913.0,61912.0,0.00172034]
[1724770882968,2.5682359,61913.0,61912.0,0.00172034]
[1724770883185,2.5602359,61913.0,61912.0,0.00172034]
[1724770883405,2.5462359,61913.0,61912.0,0.00172034]
[1724770883631,2.5582359,61913.0,61912.0,0.00172034]
[1724770883864,2.8932689,61913.0,61912.0,0.00172034]
[1724770884098,2.94396621,61913.0,61912.0,0.00172034]
[1724770884337,2.95796621,61913.0,61912.0,0.00172034]
[1724770884558,2.97196621,61913.0,61912.0,0.00172034]
[1724770884790,2.95796621,61913.0,61912.0,0.00172034]
[1724770885326,2.95796621,61913.0,61902.0,0.1]
[1724770885327,0.002,61903.0,61902.0,0.1]
[1724770885564,1.70488176,61903.0,61902.0,0.1]
[1724770885780,2.35105376,61903.0,61902.0,0.1]
[1724770885993,2.67313976,61903.0,61902.0,0.1]
[1724770886250,2.67213976,61903.0,61902.0,0.1]
[1724770886461,2.83310521,61903.0,61902.0,0.1]
[1724770886887,2.50901921,61903.0,61902.0,0.1]
[1724770887100,2.83210521,61903.0,61902.0,0.1]
[1724770887528,2.84410521,61903.0,61902.0,0.1]
[1724770888202,2.53201921,61903.0,61902.0,0.1]
[1724770888418,2.1175193,61903.0,61902.0,0.1]
[1724770890191,2.1175193,61903.0,61902.0,0.3008]
[1724770890192,1.14638185,61903.0,61902.0,0.3008]
[1724770890394,0.5017874,61903.0,61902.0,0.3226]
[1724770890803,0.5017874,61903.0,61902.0,0.48256545]
[1724770891201,0.4787874,61903.0,61902.0,0.48256545]
[1724770892472,0.4787874,61903.0,61902.0,0.50556545]
[1724770893072,0.4787874,61903.0,61902.0,0.48256545]
[1724770893279,0.4787874,61903.0,61902.0,0.48356545]
[1724770893939,0.4797874,61903.0,61902.0,0.48556545]
[1724770894308,0.68930914,61903.0,61902.0,0.3246]
[1724770894456,1.33648114,61903.0,61902.0,0.3048]
[1724770895044,1.33448114,61903.0,61902.0,0.301623]
[1724770895662,1.33448114,61903.0,61902.0,0.100823]
[1724770896618,1.65856714,61903.0,61902.0,0.101823]
[1724770896823,2.5202185,61903.0,61902.0,0.102823]
[1724770897043,2.1971325,61903.0,61902.0,0.102823]
[1724770897636,2.1961325,61903.0,61902.0,0.101823]
[1724770897798,2.1951325,61903.0,61902.0,0.100823]
[1724770898006,2.2061325,61903.0,61902.0,0.100823]
[1724770898161,2.2181325,61903.0,61902.0,0.100823]
[1724770898362,2.5412185,61903.0,61902.0,0.100823]
[1724770898610,2.5412185,61903.0,61902.0,0.000823]
[1724770899241,2.8653045,61903.0,61902.0,0.000823]
[1724770899442,2.94690459,61903.0,61902.0,0.000823]
[1724770899779,2.9722145,61903.0,61902.0,0.000823]
[1724770901420,3.19601441,61903.0,61902.0,0.000823]
[1724770901619,2.87292841,61903.0,61902.0,0.000823]
[1724770902586,2.87192841,61903.0,61902.0,0.000823]
[1724770902762,2.87292841,61903.0,61902.0,0.000823]
[1724770902964,2.87092841,61903.0,61902.0,0.000823]
[1724770903341,2.66652841,61903.0,61902.0,0.000823]
[1724770903987,2.34344241,61903.0,61902.0,0.000823]
[1724770904187,1.84053259,61903.0,61902.0,0.000823]
[1724770904393,2.0643325,61903.0,61902.0,0.000823]
[1724770904814,2.5982185,61903.0,61902.0,0.000823]
[1724770905017,2.2751325,61903.0,61902.0,0.000823]
[1724770905234,2.5982185,61903.0,61902.0,0.000823]
[1724770905439,2.6982185,61903.0,61902.0,0.000823]
[1724770906855,2.47441859,61903.0,61902.0,0.000823]
[1724770907207,2.49971626,61903.0,61902.0,0.000823]
[1724770907586,2.52502488,61903.0,61902.0,0.000823]
[1724770908221,2.69352488,61903.0,61902.0,0.000823]
[1724770909044,2.15963888,61903.0,61902.0,0.000823]
[1724770909218,2.13434121,61903.0,61902.0,0.000823]
[1724770910552,2.15963721,61903.0,61902.0,0.000823]
[1724770911156,2.67842321,61903.0,61902.0,0.000823]
[1724770914454,2.15963721,61903.0,61902.0,0.000823]
[1724770914876,2.48272321,61903.0,61902.0,0.000823]
[1724770915192,2.45741459,61903.0,61902.0,0.000823]
[1724770915897,2.67201459,61903.0,61902.0,0.000823]
[1724770918546,2.69732359,61903.0,61902.0,0.000823]
[1724770920969,3.02040959,61903.0,61902.0,0.000823]
[1724770921168,2.69732359,61903.0,61902.0,0.000823]
[1724770922136,2.68632359,61903.0,61902.0,0.000823]
[1724770922342,2.70032359,61903.0,61902.0,0.000823]
[1724770922859,2.38185891,61893.0,61883.0,0.00822]
[1724770923057,3.04590776,61893.0,61883.0,0.00822]
[1724770923286,3.30587321,61893.0,61883.0,0.00822]
[1724770923457,0.484738,61889.0,61883.0,0.00822]
[1724770923664,2.27590485,61889.0,61883.0,0.00822]
[1724770923874,2.71956177,61889.0,61883.0,0.00822]
[1724770924071,2.69546696,61889.0,61883.0,0.00822]
[1724770924304,3.17859141,61889.0,61883.0,0.00822]
[1724770924521,2.83013641,61889.0,61883.0,0.00822]
[1724770924938,2.2025743,61889.0,61883.0,0.00822]
[1724770925266,2.27484136,61889.0,61883.0,0.00822]
[1724770925491,2.2025743,61889.0,61883.0,0.00822]
[1724770925691,2.2165743,61889.0,61883.0,0.00822]
[1724770925893,2.5397333,61889.0,61883.0,0.00822]
[1724770926096,2.63609288,61889.0,61883.0,0.00822]
[1724770926300,2.63609097,61889.0,61883.0,0.00822]
[1724770926501,2.5397333,61889.0,61883.0,0.00822]
[1724770926729,2.63609997,61889.0,61883.0,0.00822]
[1724770926932,2.32694097,61889.0,61883.0,0.00822]
[1724770927135,2.25587694,61889.0,61883.0,0.00822]
[1724770927333,2.91768303,61889.0,61883.0,0.00822]
[1724770927532,2.7719333,61889.0,61883.0,0.00822]
[1724770927752,2.79723682,61889.0,61883.0,0.00822]
[1724770928313,2.94068391,61889.0,61883.0,0.00822]
[1724770928519,2.82023682,61889.0,61883.0,0.00822]
[1724770928834,2.91768391,61889.0,61883.0,0.00822]
[1724770929034,2.35225948,61889.0,61883.0,0.00822]
[1724770929236,2.2305743,61889.0,61883.0,0.00822]
[1724770929460,2.25587672,61889.0,61883.0,0.00822]
[1724770929684,2.3522325,61889.0,61883.0,0.00822]
[1724770929994,2.25587672,61889.0,61883.0,0.00822]
[1724770930178,2.3522325,61889.0,61883.0,0.00822]
[1724770930556,2.25587672,61889.0,61883.0,0.00822]
[1724770930756,2.3522325,61889.0,61883.0,0.00822]
[1724770931379,2.37754921,61889.0,61883.0,0.00822]
[1724770931582,2.28119343,61889.0,61883.0,0.00822]
[1724770932015,2.60435243,61889.0,61883.0,0.00822]
[1724770932647,2.84895243,61889.0,61883.0,0.00822]
[1724770933135,2.82595243,61889.0,61883.0,0.00822]
[1724770933609,2.82595243,61889.0,61884.0,0.2175]
[1724770933610,2.60435243,61889.0,61884.0,0.2175]
[1724770933832,2.60435243,61889.0,61883.0,0.00822]
[1724770934526,2.70063554,61889.0,61883.0,0.00822]
[1724770934978,2.82363572,61889.0,61883.0,0.00822]
[1724770935426,2.96797336,61889.0,61883.0,0.00822]
[1724770935687,2.82363572,61889.0,61883.0,0.00822]
[1724770936301,2.96792886,61889.0,61883.0,0.00822]
[1724770936505,2.82363572,61889.0,61883.0,0.00822]
[1724770936718,3.29105058,61889.0,61883.0,0.00822]
[1724770936942,2.82363572,61889.0,61883.0,0.00822]
[1724770937155,2.96789158,61889.0,61883.0,0.00822]
[1724770937400,3.29105058,61889.0,61883.0,0.00822]
[1724770937636,2.82363572,61889.0,61883.0,0.00822]
[1724770938362,2.80963572,61889.0,61883.0,0.00822]
[1724770938584,3.2771426,61889.0,61883.0,0.00822]
[1724770938846,2.9679836,61889.0,61883.0,0.00822]
[1724770939091,2.82363572,61889.0,61883.0,0.00822]
[1724770939313,2.96802895,61889.0,61883.0,0.00822]
[1724770939574,2.80063572,61889.0,61883.0,0.00822]
[1724770939796,2.78663572,61889.0,61883.0,0.00822]
[1724770940016,2.80063572,61889.0,61883.0,0.00822]
[1724770940708,2.72353693,61889.0,61883.0,0.00822]
[1724770941380,2.74885407,61889.0,61883.0,0.00822]
[1724770941638,1.04214496,61889.0,61888.0,0.23145]
[1724770941892,1.04214496,61889.0,61888.0,0.29185]
[1724770942249,1.36530396,61889.0,61888.0,0.29185]
[1724770942377,0.60556394,61889.0,61888.0,0.29185]
[1724770942635,0.51810454,61889.0,61888.0,0.29185]
[1724770942887,0.4787874,61889.0,61888.0,0.29185]
[1724770943401,0.4857874,61889.0,61888.0,0.29185]
[1724770943634,0.4787874,61889.0,61888.0,0.29185]
[1724770943862,0.4827874,61889.0,61888.0,0.45181545]
[1724770944107,0.4827874,61889.0,61888.0,0.29185]
[1724770944340,0.4787874,61889.0,61888.0,0.29185]
[1724770944574,0.4847874,61889.0,61888.0,0.29285]
[1724770944808,0.53326614,61889.0,61888.0,0.29285]
[1724770945086,2.21089132,61889.0,61888.0,0.23245]
[1724770945319,2.21089132,61889.0,61888.0,0.00935]
[1724770945320,2.51111174,61889.0,61888.0,0.00935]
[1724770945559,2.06738714,61889.0,61888.0,0.01035]
[1724770945855,2.23698714,61889.0,61888.0,0.00935]
[1724770946084,1.84358723,61889.0,61888.0,0.00835]
[1724770946321,2.17674623,61889.0,61888.0,0.00835]
[1724770946569,2.18674623,61889.0,61888.0,0.00835]
[1724770946834,2.45442496,61889.0,61888.0,0.00835]
[1724770947068,2.28674623,61889.0,61888.0,0.00835]
[1724770947809,2.28674623,61889.0,61866.0,0.33119863]
[1724770947810,0.484911,61867.0,61866.0,0.33119863]
[1724770948043,0.4787874,61867.0,61866.0,0.33119863]
[1724770949755,0.3787874,61867.0,61866.0,0.33119863]
[1724770950670,0.3787874,61867.0,61866.0,0.49116408]
[1724770950906,0.3787874,61867.0,61866.0,0.70146408]
[1724770951260,0.3787874,61867.0,61866.0,0.33119863]
[1724770951261,0.5404244,61867.0,61866.0,0.33119863]
[1724770951507,1.08749831,61867.0,61866.0,0.33119863]
[1724770951753,0.3797874,61867.0,61866.0,0.33119863]
[1724770952240,0.3787874,61867.0,61866.0,0.33119863]
[1724770952542,0.3787874,61867.0,61866.0,0.53719863]
[1724770952769,0.3797874,61867.0,61866.0,0.53719863]
[1724770953010,1.22738314,61867.0,61866.0,0.33119863]
[1724770953508,0.3787874,61867.0,61866.0,0.33119863]
[1724770953752,0.3787874,61867.0,61866.0,0.54799863]
[1724770954464,0.3797874,61867.0,61866.0,0.54799863]
[1724770954937,0.3787874,61867.0,61866.0,0.54799863]
[1724770955392,0.3797874,61867.0,61866.0,0.54799863]
[1724770955866,0.3787874,61867.0,61866.0,0.54799863]
[1724770956857,0.3787874,61867.0,61866.0,0.54999863]
[1724770956858,0.3797874,61867.0,61866.0,0.54999863]
[1724770957096,0.3797874,61867.0,61866.0,0.33119863]
[1724770957097,0.5404244,61867.0,61866.0,0.33119863]
[1724770957309,0.5414244,61867.0,61866.0,0.33519863]
[1724770957528,0.46615694,61867.0,61866.0,0.33602163]
[1724770957754,0.3787874,61867.0,61866.0,0.33202163]
[1724770957996,0.3797874,61867.0,61866.0,0.33202163]
[1724770958468,0.5404244,61867.0,61866.0,0.33202163]
[1724770958922,0.3787874,61867.0,61866.0,0.33202163]
[1724770959148,0.3797874,61867.0,61866.0,0.33402163]
[1724770959397,0.3797874,61867.0,61866.0,0.55062163]
[1724770959398,0.3787874,61867.0,61866.0,0.55062163]
[1724770959890,0.3787874,61867.0,61866.0,0.55262163]
[1724770960579,0.41766614,61867.0,61866.0,0.55262163]
[1724770960802,0.3797874,61867.0,61866.0,0.55262163]
[1724770961036,0.3787874,61867.0,61866.0,0.55262163]
[1724770963034,0.5404244,61867.0,61866.0,0.33402163]
[1724770963257,0.62679354,61867.0,61866.0,0.33402163]
[1724770963488,0.95006754,61867.0,61866.0,0.33402163]
[1724770964248,0.95006754,61867.0,61861.0,0.00112]
[1724770964249,0.48495,61862.0,61861.0,0.00112]
[1724770964492,0.3968,61862.0,61861.0,0.00112]
[1724770964725,1.2605374,61862.0,61861.0,0.00112]
[1724770965460,1.74380285,61862.0,61861.0,0.00112]
[1724770965676,2.0037683,61862.0,61861.0,0.00112]
[1724770965889,2.37526119,61862.0,61861.0,0.00112]
[1724770966106,1.63203029,61862.0,61861.0,0.00112]
[1724770966332,1.42050285,61862.0,61861.0,0.00112]
[1724770966556,1.19590285,61862.0,61861.0,0.00112]
[1724770966827,0.3787874,61862.0,61861.0,0.00112]
[1724770967256,0.3937874,61862.0,61861.0,0.00112]
[1724770967701,0.3857874,61862.0,61861.0,0.00112]
[1724770967936,0.3817874,61862.0,61861.0,0.00112]
[1724770968294,0.3797874,61862.0,61861.0,0.00112]
[1724770968727,0.3797874,61862.0,61861.0,0.22182]
[1724770968942,0.3797874,61862.0,61861.0,0.222643]
[1724770969420,0.3787874,61862.0,61861.0,0.222643]
[1724770969636,0.3807874,61862.0,61861.0,0.222643]
[1724770969857,0.3797874,61862.0,61861.0,0.222643]
[1724770970525,0.3807874,61862.0,61861.0,0.222643]
[1724770970769,0.3807874,61862.0,61861.0,0.48260845]
[1724770970979,0.3807874,61862.0,61861.0,0.50782589]
[1724770971200,0.3807874,61862.0,61861.0,0.52531771]
[1724770971425,0.3807874,61862.0,61861.0,0.99278289]
[1724770971632,0.3807874,61862.0,61861.0,0.69247789]
[1724770971839,0.3807874,61862.0,61861.0,0.7099694]
[1724770972039,0.3807874,61862.0,61861.0,1.0332744]
[1724770972645,0.3787874,61862.0,61861.0,0.50009996]
[1724770972848,0.3787874,61862.0,61861.0,0.48260845]
[1724770973052,0.3807874,61862.0,61861.0,0.49260845]
[1724770973256,0.3807874,61862.0,61861.0,0.332643]
[1724770973897,0.3807874,61862.0,61861.0,0.232643]
[1724770974999,0.3807874,61862.0,61861.0,0.263843]
[1724770975224,0.3807874,61862.0,61861.0,0.42380845]
[1724770975440,0.3807874,61862.0,61861.0,0.55346916]
[1724770975678,0.3807874,61862.0,61861.0,1.05591918]
[1724770976098,0.3807874,61862.0,61861.0,1.40222418]
[1724770976537,0.3807874,61862.0,61861.0,1.07891918]
[1724770976737,0.3807874,61862.0,61861.0,0.75561418]
[1724770976973,0.3807874,61862.0,61861.0,0.59396218]
[1724770977194,0.3797874,61862.0,61861.0,0.75061418]
[1724770977403,0.3797874,61862.0,61861.0,0.53629916]
[1724770977612,0.3807874,61862.0,61861.0,0.54529916]
[1724770978243,0.3807874,61862.0,61861.0,0.54530127]
[1724770978853,0.3807874,61862.0,61861.0,0.61895093]
[1724770979266,0.3807874,61862.0,61861.0,0.54530127]
[1724770980349,0.3807874,61862.0,61861.0,0.70695327]
[1724770980562,0.3807874,61862.0,61861.0,0.56830127]
[1724770980841,0.3807874,61862.0,61861.0,0.72999327]
[1724770981060,0.3807874,61862.0,61861.0,1.05329827]
[1724770981292,0.3807874,61862.0,61861.0,0.88995872]
[1724770981530,0.3807874,61862.0,61861.0,1.21326372]